fUST/lending_fUST_20250310
["ID","MTS","AMOUNT","RATE_DAILY","PERIOD"]
[355777003,1741554510571,-300.0,0.0005,120]
[355777004,1741554510594,-810.0,0.0005,60]
[355777005,1741554510620,-500.0,0.00050017,98]
[355777006,1741554510644,-500.0,0.00050117,92]
[355777007,1741554510669,-500.0,0.00050217,93]
[355777008,1741554510694,-500.0,0.00050317,92]
[355777009,1741554510718,-150.0,0.00050384,30]
[355777010,1741554510742,-500.0,0.0005041,120]
[355777011,1741554510766,-500.0,0.0005041,120]
[355777012,1741554510907,-624.32,0.0005041,120]
[355777013,1741554510933,-500.0,0.0005041,120]
[355777014,1741554510958,-500.0,0.0005041,120]
[355777015,1741554510983,-532.09,0.0005041,120]
[355777016,1741554511008,-1298.92,0.0005041,120]
[355777017,1741554511032,-500.0,0.0005041,120]
[355777018,1741554511057,-1967.92,0.0005041,120]
[355777019,1741554511082,-500.0,0.0005041,120]
[355777020,1741554511107,-500.0,0.0005041,120]
[355777021,1741554511132,-879.09,0.0005041,120]
[355777022,1741554511158,-500.0,0.0005041,120]
[355777023,1741554511183,-1165.14,0.0005041,120]
[355777024,1741554511209,-500.0,0.0005041,120]
[355777025,1741554511234,-500.0,0.0005041,120]
[355777026,1741554511259,-500.0,0.0005041,120]
[355777027,1741554511285,-500.0,0.0005041,120]
[355777028,1741554511310,-744.69,0.0005041,120]
[355777029,1741554511336,-1709.3,0.0005041,120]
[355777030,1741554511360,-500.0,0.0005041,120]
[355777031,1741554511385,-500.0,0.0005041,120]
[355777032,1741554511410,-500.0,0.0005041,120]
[355777033,1741554511436,-2325.22,0.0005041,120]
[355777034,1741554511461,-787.11,0.0005041,60]
[355777035,1741554511486,-500.0,0.0005041,120]
[355777036,1741554511515,-624.97,0.0005041,120]
[355777037,1741554511542,-500.0,0.0005041,120]
[355777038,1741554511567,-500.0,0.00050417,99]
[355777039,1741554511591,-714.6994,0.00050431,120]
[355777040,1741554511619,-16118.2,0.000505,30]
[355777041,1741554511643,-553.25,0.000505,30]
[355777042,1741554511669,-657.86,0.00050517,99]
[355777043,1741554511695,-616.86,0.000506,30]
[355777044,1741554511720,-573.63,0.000506,30]
[355777045,1741554511745,-151.0,0.000506,120]
[355777046,1741554511774,-151.0,0.000506,120]
[355777047,1741554511802,-151.0,0.00050654,120]
[355777048,1741554511829,-151.0,0.00050654,120]
[355777049,1741554511856,-154.217598,0.00050654,120]
[355777050,1741554511884,-151.0,0.00050654,120]
[355777051,1741554511908,-151.0,0.00050654,120]
[355777052,1741554511933,-151.0,0.00050654,120]
[355777053,1741554511958,-151.0,0.00050654,120]
[355777054,1741554511984,-163.216272,0.00050654,120]
[355777055,1741554512009,-163.216272,0.00050654,120]
[355777056,1741554512035,-163.216272,0.00050654,120]
[355777057,1741554512060,-163.216272,0.00050654,120]
[355777058,1741554512085,-163.216272,0.00050654,120]
[355777059,1741554512111,-163.216272,0.00050654,120]
[355777060,1741554512136,-163.216272,0.00050654,120]
[355777061,1741554512161,-163.216272,0.00050654,120]
[355777062,1741554512187,-163.216272,0.00050654,120]
[355777063,1741554512212,-163.216272,0.00050654,120]
[355777064,1741554512237,-151.0,0.00050654,120]
[355777065,1741554512263,-151.0,0.00050654,120]
[355777066,1741554512289,-151.0,0.00050654,120]
[355777067,1741554512314,-151.0,0.00050654,120]
[355777068,1741554512339,-151.0,0.00050654,120]
[355777069,1741554512364,-151.0,0.00050654,120]
[355777070,1741554512389,-151.0,0.00050654,120]
[355777071,1741554512413,-151.0,0.00050654,120]
[355777072,1741554512438,-151.0,0.00050654,120]
[355777073,1741554512462,-151.0,0.00050654,120]
[355777074,1741554512487,-151.0,0.00050654,120]
[355777075,1741554512512,-151.0,0.00050654,120]
[355777076,1741554512536,-151.0,0.00050654,120]
[355777077,1741554512561,-151.0,0.00050654,120]
[355777078,1741554512586,-151.0,0.00050654,120]
[355777079,1741554512611,-151.0,0.00050654,120]
[355777080,1741554512638,-151.0,0.00050654,120]
[355777081,1741554512662,-151.0,0.00050654,120]
[355777082,1741554512686,-151.0,0.00050654,120]
[355777083,1741554512711,-151.0,0.00050654,120]
[355777084,1741554512735,-151.0,0.00050656,120]
[355777085,1741554512760,-151.0,0.00050656,120]
[355777086,1741554512784,-151.0,0.00050656,120]
[355777087,1741554512808,-151.0,0.00050656,120]
[355777088,1741554512832,-599.630601,0.00050656,120]
[355777089,1741554512857,-599.630601,0.00050656,120]
[355777090,1741554512881,-599.630601,0.00050656,120]
[355777091,1741554512905,-151.0,0.00050656,120]
[355777092,1741554512929,-151.0,0.00050656,120]
[355777093,1741554512953,-151.0,0.00050656,120]
[355777094,1741554512978,-151.0,0.00050656,120]
[355777095,1741554513003,-151.0,0.00050656,120]
[355777096,1741554513027,-151.0,0.00050656,120]
[355777097,1741554513056,-151.0,0.00050656,120]
[355777098,1741554513198,-151.0,0.00050656,120]
[355777099,1741554513225,-151.0,0.00050656,120]
[355777100,1741554513257,-151.0,0.00050656,120]
[355777101,1741554513283,-151.0,0.00050656,120]
[355777102,1741554513310,-298.821662,0.00050656,120]
[355777103,1741554513336,-151.0,0.00050656,110]
[355777104,1741554513363,-151.0,0.00050656,110]
[355777105,1741554513390,-151.0,0.00050656,110]
[355777106,1741554513417,-151.0,0.00050656,120]
[355777107,1741554513444,-151.0,0.00050656,120]
[355777108,1741554513472,-151.0,0.00050656,120]
[355777109,1741554513499,-151.0,0.00050656,120]
[355777110,1741554513527,-151.0,0.00050656,120]
[355777111,1741554513553,-229.909607,0.00050656,120]
[355777112,1741554513580,-151.0,0.00050656,120]
[355777113,1741554513606,-151.0,0.00050656,120]
[355777114,1741554513637,-151.0,0.00050656,120]
[355777115,1741554513663,-180.35195,0.00050656,120]
[355777116,1741554513689,-151.0,0.00050656,120]
[355777117,1741554513717,-151.0,0.00050656,120]
[355777118,1741554513744,-151.0,0.00050656,120]
[355777119,1741554513771,-151.0,0.00050656,120]
[355777120,1741554513797,-151.0,0.00050656,120]
[355777121,1741554513824,-151.0,0.00050656,120]
[355777122,1741554513850,-151.0,0.00050656,120]
[355777123,1741554513875,-151.0,0.00050656,120]
[355777124,1741554513901,-151.0,0.00050656,120]
[355777125,1741554513927,-157.805312,0.00050656,120]
[355777126,1741554513964,-365.59,0.000507,30]
[355777127,1741554513991,-200.0,0.00050857,120]
[355777128,1741554514016,-410.89,0.000509,30]
[355777129,1741554514048,-300.08,0.000509,30]
[355777130,1741554514074,-500.0,0.00050958,120]
[355777131,1741554514100,-500.0,0.00050958,120]
[355777132,1741554514126,-624.32,0.00050958,120]
[355777133,1741554514153,-500.0,0.00050958,120]
[355777134,1741554514180,-605.37991605,0.00050958,120]
[355777135,1741554514207,-532.09,0.00050958,120]
[355777136,1741554514234,-1298.92,0.00050958,120]
[355777137,1741554514262,-500.0,0.00050958,120]
[355777138,1741554514291,-1967.92,0.00050958,120]
[355777139,1741554514319,-500.0,0.00050958,120]
[355777140,1741554514347,-500.0,0.00050958,120]
[355777141,1741554514374,-879.09,0.00050958,120]
[355777142,1741554514401,-500.0,0.00050958,120]
[355777143,1741554514428,-1165.14,0.00050958,120]
[355777144,1741554514455,-500.0,0.00050958,120]
[355777145,1741554514481,-500.0,0.00050958,120]
[355777146,1741554514508,-500.0,0.00050958,120]
[355777147,1741554514535,-500.0,0.00050958,120]
[355777148,1741554514560,-744.69,0.00050958,120]
[355777149,1741554514586,-1709.3,0.00050958,120]
[355777150,1741554514614,-999.0,0.00050958,120]
[355777151,1741554514639,-500.0,0.00050958,120]
[355777152,1741554514666,-500.0,0.00050958,120]
[355777153,1741554514692,-500.0,0.00050958,120]
[355777154,1741554514721,-2325.22,0.00050958,120]
[355777155,1741554514746,-787.11,0.00050958,60]
[355777156,1741554514773,-500.0,0.00050958,120]
[355777157,1741554514799,-624.97,0.00050958,120]
[355777158,1741554514824,-500.0,0.00050958,120]
[355777159,1741554514848,-30000.0,0.00051,30]
[355777160,1741554514873,-3000.0,0.00051,85]
[355777161,1741554514901,-3000.0,0.0005101,85]
[355777162,1741554514926,-3000.0,0.0005102,85]
[355777163,1741554514951,-3000.0,0.0005103,85]
[355777164,1741554514977,-163.216272,0.0005103,120]
[355777165,1741554515002,-163.216272,0.0005103,120]
[355777166,1741554515028,-151.0,0.0005103,120]
[355777167,1741554515053,-151.0,0.0005103,120]
[355777168,1741554515087,-3000.0,0.0005104,85]
[355777169,1741554515122,-3000.0,0.0005105,85]
[355777170,1741554515159,-3000.0,0.0005106,85]
[355777171,1741554515196,-4139.025356,0.0005107,85]
[355777172,1741554515232,-151.0,0.0005107,120]
[355777173,1741554515268,-200.0,0.00051075,120]
[355777174,1741554515303,-200.0,0.00051391,120]
[355777175,1741554515338,-500.0,0.00051506,120]
[355777176,1741554515371,-500.0,0.00051506,120]
[355777177,1741554515404,-624.32,0.00051506,120]
[355777178,1741554515437,-500.0,0.00051506,120]
[355777179,1741554515469,-532.09,0.00051506,120]
[355777180,1741554515501,-599.630601,0.00051506,120]
[355777181,1741554515661,-1298.92,0.00051506,120]
[355777182,1741554515694,-164.845705,0.00051506,120]
[355777183,1741554515727,-500.0,0.00051506,120]
[355777184,1741554515761,-1967.92,0.00051506,120]
[355777185,1741554515794,-500.0,0.00051506,120]
[355777186,1741554515826,-500.0,0.00051506,120]
[355777187,1741554515860,-879.09,0.00051506,120]
[355777188,1741554515895,-500.0,0.00051506,120]
[355777189,1741554515926,-1165.14,0.00051506,120]
[355777190,1741554515957,-500.0,0.00051506,120]
[355777191,1741554515988,-500.0,0.00051506,120]
[355777192,1741554516020,-500.0,0.00051506,120]
[355777193,1741554516051,-500.0,0.00051506,120]
[355777194,1741554516083,-744.69,0.00051506,120]
[355777195,1741554516116,-1709.3,0.00051506,120]
[355777196,1741554516150,-500.0,0.00051506,120]
[355777197,1741554516187,-500.0,0.00051506,120]
[355777198,1741554516224,-500.0,0.00051506,120]
[355777199,1741554516262,-2325.22,0.00051506,120]
[355777200,1741554516303,-787.11,0.00051506,60]
[355777201,1741554516338,-500.0,0.00051506,120]
[355777202,1741554516374,-151.0,0.00051506,120]
[355777203,1741554516408,-624.97,0.00051506,120]
[355777204,1741554516441,-500.0,0.00051506,120]
[355777205,1741554516480,-153.39,0.000516,51]
[355777206,1741554516516,-153.39,0.000516,51]
[355777207,1741554516553,-153.39,0.000516,51]
[355777208,1741554516588,-153.39,0.000516,51]
[355777209,1741554516624,-153.39,0.000516,51]
[355777210,1741554516660,-153.39,0.000516,51]
[355777211,1741554516697,-153.39,0.000516,51]
[355777212,1741554516734,-153.39,0.000516,51]
[355777213,1741554516768,-153.39,0.000516,51]
[355777214,1741554516804,-153.39,0.000516,51]
[355777215,1741554516837,-153.39,0.000516,51]
[355777216,1741554516872,-153.39,0.000516,51]
[355777217,1741554516906,-153.39,0.000516,51]
[355777218,1741554516941,-153.39,0.000516,51]
[355777219,1741554516976,-153.39,0.000516,51]
[355777220,1741554517012,-153.39,0.000516,51]
[355777221,1741554517049,-153.39,0.000516,51]
[355777222,1741554517086,-153.39,0.000516,51]
[355777223,1741554517119,-8229.0549138,0.00051739,120]
[355777224,1741554517152,-150.0,0.00051754,30]
[355777225,1741554517185,-553.25,0.000519,30]
[355777226,1741554517216,-2989.0,0.00052,120]
[355777227,1741554517250,-500.0,0.00052054,120]
[355777228,1741554517284,-500.0,0.00052054,120]
[355777229,1741554517316,-624.32,0.00052054,120]
[355777230,1741554517348,-500.0,0.00052054,120]
[355777231,1741554517382,-532.09,0.00052054,120]
[355777232,1741554517416,-1298.92,0.00052054,120]
[355777233,1741554517449,-500.0,0.00052054,120]
[355777234,1741554517484,-1967.92,0.00052054,120]
[355777235,1741554517518,-500.0,0.00052054,120]
[355777236,1741554517554,-500.0,0.00052054,120]
[355777237,1741554517588,-879.09,0.00052054,120]
[355777238,1741554517622,-500.0,0.00052054,120]
[355777239,1741554517656,-1165.14,0.00052054,120]
[355777240,1741554517690,-500.0,0.00052054,120]
[355777241,1741554517724,-500.0,0.00052054,120]
[355777242,1741554517757,-152.36420022,0.00052054,120]
[355777243,1741554517789,-500.0,0.00052054,120]
[355777244,1741554517821,-744.69,0.00052054,120]
[355777245,1741554517854,-1709.3,0.00052054,120]
[355777246,1741554517886,-999.0,0.00052054,120]
[355777247,1741554517918,-500.0,0.00052054,120]
[355777248,1741554517950,-500.0,0.00052054,120]
[355777249,1741554517982,-500.0,0.00052054,120]
[355777250,1741554518014,-2325.22,0.00052054,120]
[355777251,1741554518046,-787.11,0.00052054,60]
[355777252,1741554518085,-500.0,0.00052054,120]
[355777253,1741554518119,-624.97,0.00052054,120]
[355777254,1741554518154,-500.0,0.00052054,120]
[355777255,1741554518188,-162.3022402,0.00052054,120]
[355777256,1741554518220,-1718.18557432,0.00052066,120]
[355777257,1741554518254,-3245.01591465,0.00052066,120]
[355777258,1741554518288,-16118.2,0.000523,30]
[355777259,1741554518321,-573.63,0.000524,30]
[355777260,1741554518355,-616.86,0.000524,30]
[355777261,1741554518389,-200.0,0.00052485,120]
[355777262,1741554518542,-10000.0,0.000525,120]
[355777263,1741554518584,-163.0,0.000525,120]
[355777264,1741554518631,-1132.78,0.000525,90]
[355777265,1741554518673,-410.89,0.000525,30]
[355777266,1741554518714,-300.08,0.000525,30]
[355777267,1741554518752,-365.59,0.000526,30]
[355777268,1741554518793,-500.0,0.00052602,120]
[355777269,1741554518831,-200.0,0.00052602,120]
[355777270,1741554518869,-500.0,0.00052602,120]
[355777271,1741554518905,-624.32,0.00052602,120]
[355777272,1741554518941,-335.17829739,0.00052602,120]
[355777273,1741554518977,-532.09,0.00052602,120]
[355777274,1741554519012,-1298.92,0.00052602,120]
[355777275,1741554519049,-500.0,0.00052602,120]
[355777276,1741554519086,-1967.92,0.00052602,120]
[355777277,1741554519125,-500.0,0.00052602,120]
[355777278,1741554519162,-500.0,0.00052602,120]
[355777279,1741554519198,-879.09,0.00052602,120]
[355777280,1741554519234,-500.0,0.00052602,120]
[355777281,1741554519269,-1165.14,0.00052602,120]
[355777282,1741554519305,-540.9339171,0.00052602,120]
[355777283,1741554519340,-500.0,0.00052602,120]
[355777284,1741554519374,-500.0,0.00052602,120]
[355777285,1741554519408,-744.69,0.00052602,120]
[355777286,1741554519442,-1709.3,0.00052602,120]
[355777287,1741554519475,-174.04,0.00052602,120]
[355777288,1741554519510,-500.0,0.00052602,120]
[355777289,1741554519544,-500.0,0.00052602,120]
[355777290,1741554519579,-2325.22,0.00052602,120]
[355777291,1741554519615,-787.11,0.00052602,60]
[355777292,1741554519648,-500.0,0.00052602,120]
[355777293,1741554519681,-624.97,0.00052602,120]
[355777294,1741554519715,-500.0,0.00052602,120]
[355777295,1741554519748,-200.0,0.00052877,120]
[355777296,1741554519781,-200.0,0.00052988,120]
[355777297,1741554519814,-3468.43468245,0.00053,90]
[355777298,1741554519846,-2522.13906352,0.00053,90]
[355777299,1741554519877,-200.0,0.00053069,120]
[355777300,1741554519909,-150.0,0.00053124,30]
[355777301,1741554519944,-516.96550992,0.0005315,120]
[355777302,1741554519976,-500.0,0.0005315,120]
[355777303,1741554520006,-624.32,0.0005315,120]
[355777304,1741554520037,-532.09,0.0005315,120]
[355777305,1741554520068,-1298.92,0.0005315,120]
[355777306,1741554520100,-151.14151397,0.0005315,120]
[355777307,1741554520133,-1967.92,0.0005315,120]
[355777308,1741554520166,-500.0,0.0005315,120]
[355777309,1741554520198,-500.0,0.0005315,120]
[355777310,1741554520230,-879.09,0.0005315,120]
[355777311,1741554520261,-500.0,0.0005315,120]
[355777312,1741554520292,-1165.14,0.0005315,120]
[355777313,1741554520324,-500.0,0.0005315,120]
[355777314,1741554520355,-500.0,0.0005315,120]
[355777315,1741554520386,-744.69,0.0005315,120]
[355777316,1741554520417,-1709.3,0.0005315,120]
[355777317,1741554520448,-999.0,0.0005315,120]
[355777318,1741554520479,-500.0,0.0005315,120]
[355777319,1741554520511,-500.0,0.0005315,120]
[355777320,1741554520544,-2325.22,0.0005315,120]
[355777321,1741554520576,-787.11,0.0005315,60]
[355777322,1741554520608,-500.0,0.0005315,120]
[355777323,1741554520643,-624.97,0.0005315,120]
[355777324,1741554520674,-500.0,0.0005315,120]
[355777325,1741554520706,-200.0,0.00053214,120]
[355777326,1741554520737,-200.0,0.00053368,120]
[355777327,1741554520768,-553.25,0.000534,30]
[355777328,1741554520802,-559.0265757,0.00053458,30]
[355777329,1741554520832,-559.0265757,0.00053458,30]
[355777330,1741554520864,-559.0265757,0.00053458,30]
[355777331,1741554520894,-559.0265757,0.00053458,30]
[355777332,1741554520924,-500.0,0.00053698,120]
[355777333,1741554520955,-624.32,0.00053698,120]
[355777334,1741554520987,-532.09,0.00053698,120]
[355777335,1741554521019,-1298.92,0.00053698,120]
[355777336,1741554521050,-1967.92,0.00053698,120]
[355777337,1741554521082,-500.0,0.00053698,120]
[355777338,1741554521118,-500.0,0.00053698,120]
[355777339,1741554521153,-879.09,0.00053698,120]
[355777340,1741554521293,-500.0,0.00053698,120]
[355777341,1741554521328,-1165.14,0.00053698,120]
[355777342,1741554521361,-500.0,0.00053698,120]
[355777343,1741554521394,-500.0,0.00053698,120]
[355777344,1741554521426,-744.69,0.00053698,120]
[355777345,1741554521458,-1709.3,0.00053698,120]
[355777346,1741554521491,-500.0,0.00053698,120]
[355777347,1741554521522,-500.0,0.00053698,120]
[355777348,1741554521553,-2325.22,0.00053698,120]
[355777349,1741554521585,-787.11,0.00053698,60]
[355777350,1741554521617,-500.0,0.00053698,120]
[355777351,1741554521648,-624.97,0.00053698,120]
[355777352,1741554521679,-500.0,0.00053698,120]
[355777353,1741554521714,-153.39,0.000539,54]
[355777354,1741554521748,-153.39,0.000539,54]
[355777355,1741554521781,-153.39,0.000539,54]
[355777356,1741554521815,-153.39,0.000539,54]
[355777357,1741554521848,-153.39,0.000539,54]
[355777358,1741554521881,-153.39,0.000539,54]
[355777359,1741554521914,-153.39,0.000539,54]
[355777360,1741554521948,-153.39,0.000539,54]
[355777361,1741554521982,-153.39,0.000539,54]
[355777362,1741554522017,-153.39,0.000539,54]
[355777363,1741554522052,-153.39,0.000539,54]
[355777364,1741554522087,-153.39,0.000539,54]
[355777365,1741554522122,-153.39,0.000539,54]
[355777366,1741554522159,-153.39,0.000539,54]
[355777367,1741554522195,-153.39,0.000539,54]
[355777368,1741554522230,-153.39,0.000539,54]
[355777369,1741554522264,-153.39,0.000539,54]
[355777370,1741554522300,-153.39,0.000539,54]
[355777371,1741554522331,-2989.0,0.00054,120]
[355777372,1741554522363,-16118.2,0.00054,30]
[355777373,1741554522394,-410.89,0.000541,30]
[355777374,1741554522425,-300.08,0.000541,30]
[355777375,1741554522456,-238.39265646,0.00054246,120]
[355777376,1741554522486,-624.32,0.00054246,120]
[355777377,1741554522517,-532.09,0.00054246,120]
[355777378,1741554522548,-1298.92,0.00054246,120]
[355777379,1741554522580,-1967.92,0.00054246,120]
[355777380,1741554522615,-500.0,0.00054246,120]
[355777381,1741554522647,-500.0,0.00054246,120]
[355777382,1741554522679,-879.09,0.00054246,120]
[355777383,1741554522711,-279.86555585,0.00054246,120]
[355777384,1741554522743,-1165.14,0.00054246,120]
[355777385,1741554522774,-500.0,0.00054246,120]
[355777386,1741554522806,-500.0,0.00054246,120]
[355777387,1741554522838,-744.69,0.00054246,120]
[355777388,1741554522871,-1709.3,0.00054246,120]
[355777389,1741554522902,-999.0,0.00054246,120]
[355777390,1741554522935,-500.0,0.00054246,120]
[355777391,1741554522966,-500.0,0.00054246,120]
[355777392,1741554522997,-2325.22,0.00054246,120]
[355777393,1741554523028,-787.11,0.00054246,60]
[355777394,1741554523061,-500.0,0.00054246,120]
[355777395,1741554523093,-624.97,0.00054246,120]
[355777396,1741554523126,-500.0,0.00054246,120]
[355777397,1741554523160,-5000.0,0.0005437,30]
[355777398,1741554523193,-161.0,0.0005437,120]
[355777399,1741554523225,-573.63,0.000544,30]
[355777400,1741554523257,-616.86,0.000544,30]
[355777401,1741554523288,-150.0,0.00054493,30]
[355777402,1741554523318,-10000.0,0.000545,120]
[355777403,1741554523349,-10000.0,0.000545,120]
[355777404,1741554523380,-163.216272,0.000545,120]
[355777405,1741554523412,-163.216272,0.000545,120]
[355777406,1741554523444,-151.0,0.000545,120]
[355777407,1741554523477,-151.0,0.000545,120]
[355777408,1741554523510,-151.0,0.000546,120]
[355777409,1741554523543,-599.630603,0.000546,120]
[355777410,1741554523574,-151.0,0.000546,120]
[355777411,1741554523606,-666.0,0.00054794,120]
[355777412,1741554523640,-500.0,0.00054794,120]
[355777413,1741554523672,-500.0,0.00054794,120]
[355777414,1741554523703,-500.0,0.00054794,120]
[355777415,1741554523735,-500.0,0.00054794,120]
[355777416,1741554523872,-500.0,0.00054794,120]
[355777417,1741554523906,-500.0,0.00054794,120]
[355777418,1741554523937,-500.0,0.00054794,120]
[355777419,1741554523973,-500.0,0.00054794,120]
[355777420,1741554524004,-500.0,0.00054794,120]
[355777421,1741554524037,-500.0,0.00054794,120]
[355777422,1741554524067,-500.0,0.00054794,120]
[355777423,1741554524099,-500.0,0.00054794,120]
[355777424,1741554524132,-500.0,0.00054794,120]
[355777425,1741554524164,-500.0,0.00054794,120]
[355777426,1741554524197,-500.0,0.00054794,120]
[355777427,1741554524229,-500.0,0.00054794,120]
[355777428,1741554524260,-624.32,0.00054794,120]
[355777429,1741554524292,-1000.0,0.00054794,30]
[355777430,1741554524323,-1035.22122104,0.00054794,30]
[355777431,1741554524354,-532.09,0.00054794,120]
[355777432,1741554524385,-1298.92,0.00054794,120]
[355777433,1741554524416,-152.95093923,0.00054794,120]
[355777434,1741554524448,-1967.92,0.00054794,120]
[355777435,1741554524480,-500.0,0.00054794,120]
[355777436,1741554524513,-500.0,0.00054794,120]
[355777437,1741554524546,-879.09,0.00054794,120]
[355777438,1741554524578,-1165.14,0.00054794,120]
[355777439,1741554524611,-500.0,0.00054794,120]
[355777440,1741554524646,-500.0,0.00054794,120]
[355777441,1741554524680,-744.69,0.00054794,120]
[355777442,1741554524714,-1709.3,0.00054794,120]
[355777443,1741554524747,-500.0,0.00054794,120]
[355777444,1741554524778,-271.89375612,0.00054794,120]
[355777445,1741554524811,-2325.22,0.00054794,120]
[355777446,1741554524843,-787.11,0.00054794,60]
[355777447,1741554524877,-500.0,0.00054794,120]
[355777448,1741554524908,-624.97,0.00054794,120]
[355777449,1741554524939,-500.0,0.00054794,120]
[355777450,1741554525077,500.0,0.00049315,120]
[355777451,1741554525120,500.0,0.00049863,120]
[355777452,1741554525159,500.0,0.0005041,120]
[355777453,1741554525202,500.0,0.00050958,120]
[355777454,1741554525239,500.0,0.00051506,120]
[355777455,1741554525283,500.0,0.00052054,120]
[355777456,1741554525319,500.0,0.00052602,120]
[355777457,1741554525354,500.0,0.0005315,120]
[355777458,1741554525392,500.0,0.00053698,120]
[355777459,1741554525433,284.480251,0.00054246,120]
[355777460,1741554525522,500.0,0.00046575,120]
[355777461,1741554525589,500.0,0.00047123,120]
[355777462,1741554525630,500.0,0.00047671,120]
[355777463,1741554525666,500.0,0.00048219,120]
[355777464,1741554525702,500.0,0.00048767,120]
[355777465,1741554525739,337.2,0.00049315,120]
[355777466,1741554525923,631.79,0.00046575,120]
[355777467,1741554525964,6189.8084866,0.00050661,71]
[355777468,1741554526017,1000.0,0.00048667,60]
[355777469,1741554526162,500.0,0.00046575,120]
[355777470,1741554526200,500.0,0.00047123,120]
[355777471,1741554526296,500.0,0.00046575,120]
[355777472,1741554526341,500.0,0.00046575,120]
[355777473,1741554526402,500.0,0.00050568,30]
[355777474,1741554529330,500.0,0.00046575,120]
[355777475,1741554529584,500.0,0.00047123,120]
[355777476,1741554529823,500.0,0.00047671,120]
[355777477,1741554530076,500.0,0.00048219,120]
[355777478,1741554530378,500.0,0.00048767,120]
[355777479,1741554530655,500.0,0.00049315,120]
[355777480,1741554531082,170.00375785,0.00049863,120]
[355777481,1741554531147,654.104101,0.00051091,120]
[355777482,1741554531332,500.0,0.00046575,120]
[355777484,1741554569194,-400.0,0.00037286,2]
[355777485,1741554569218,-232.90548756,0.00037287,2]
[355777486,1741554569242,-500.0,0.00037287,2]
[355777487,1741554569267,-598.98927153,0.00037287,2]
[355777488,1741554569290,-500.0,0.00037287,2]
[355777489,1741554569314,-500.0,0.00037287,2]
[355777490,1741554569342,-500.0,0.00037287,2]
[355777491,1741554569366,-500.0,0.00037287,2]
[355777492,1741554569390,-500.0,0.00037287,2]
[355777493,1741554569412,-500.0,0.00037287,2]
[355777494,1741554569433,-9650.7158308,0.00037288,2]
[355777495,1741554569453,-615.80353315,0.00037288,2]
[355777496,1741554569473,-360.2453854,0.000376,5]
[355777497,1741554569494,-349.82031971,0.000376,2]
[355777498,1741554608703,1145.2371809,0.0003778,2]
[355777499,1741554622046,500.0,0.00037707,2]
[355777586,1741554637308,-185.05852666,0.000396,2]
[355777587,1741554637318,-857.23515405,0.00039621,2]
[355777596,1741554638629,-1768.39864132,0.00039621,2]
[355777597,1741554638639,-190.32680871,0.00039721,2]